[Event "44th Chess Olympiad Women 2022"]
[Site "Chennai"]
[Date "2022.07.29"]
[Round "1.33"]
[White "Abera, Mekdes Demssie"]
[Black "Rodriguez Rueda, Paula Andrea"]
[Result "0-1"]
[ECO "D35"]
[WhiteElo "1342"]
[BlackElo "2237"]
[Annotator "TA"]
[PlyCount "64"]
[EventDate "2022.07.29"]
[EventType "team-tourn"]
[EventCountry "IND"]
[SourceTitle "playchess.com"]
[Source "ChessBase"]
[SourceQuality "1"]
[WhiteTeam "Ethiopia"]
[BlackTeam "Colombia"]
[WhiteTeamCountry "ETH"]
[BlackTeamCountry "COL"]
[TimeControl "40/5400+30:1800+30"]

{[%evp 11,64,-15,0,-27,-27,-42,-44,-60,-55,-75,-64,-75,-68,-64,-52,-74,-62,-85,-91,-85,-79,-125,-119,-124,-128,-115,-117,-202,-214,-210,-210,-206,-210,-213,-215,-258,-264,-258,-238,-304,-293,-298,-315,-627,-310,-1077,-1056,-1083,-1092,-1087,-1084,-1077,-1100,-1075,-1067]} 1. c4 {[%emt 0:00:13]} e6 {[%emt 0:00:18]} 2. Nc3 {[%emt 0:00:54]} d5 {[%emt 0:00:21]} 3. cxd5 {[%emt 0:00:31]} exd5 {[%emt 0:00:04]} 4. d4 {[%emt 0:00:59]} Nf6 {[%emt 0:01:06]} 5. Nf3 {[%emt 0:00:43]} c6 {[%emt 0:01:28]} 6. e3 {[%emt 0:00:41]} Bd6 {[%emt 0:00:51]} 7. Be2 {[%emt 0:01:15] D35: Queen's Gambit Declined: Exchange Variation.} O-O {[%emt 0:00:36]} 8. O-O {[%emt 0:00:35]} Re8 {[%emt 0:00:28] Prevents Ne5.} 9. Re1 {[%emt 0:00:27] Black is slightly better.} Nbd7 {[%emt 0:03:46]} 10. Qc2 {[%emt 0:02:29]} Ne4 {[%emt 0:01:13]} 11. Bd3 {[%emt 0:01:07]} Ndf6 {[%emt 0:00:06] [#]} 12. h3 $146 {[%emt 0:03:13]} ({Predecessor:} 12. Nd2 Qe7 13. Ncxe4 dxe4 14. Be2 Bf5 15. h3 Nd5 16. a3 a5 17. Bc4 Nf6 18. Nf1 {0-1 (42) Ronconi,F (1674)-Moroni,L (2184) Saronno 2013}) 12... Qe7 {[%emt 0:08:32]} 13. a3 {[%emt 0:01:57]} Bf5 {[%emt 0:08:18]} 14. Nh4 {[%emt 0:02:30] Black continues to play with concentration.} Bd7 {[%emt 0:01:05][%cal Of6g4]} 15. Nf3 {[%emt 0:01:32]} Rac8 {[%emt 0:02:00]} 16. b4 {[%emt 0:08:14] [#]} (16. Bd2 $142) 16... Nxc3 $1 $17 {[%emt 0:01:43]} 17. Qxc3 {[%emt 0:00:24]} Ne4 {[%emt 0:00:08]} 18. Qb2 {[%emt 0:03:07]} Qf6 {[%emt 0:00:22][%cal Od7h3] Black is more active.} 19. Bxe4 {[%emt 0:03:20]} (19. Qe2 $17) 19... dxe4 $19 {[%emt 0:01:06]} ({Stronger than} 19... Rxe4 20. Qe2 $17) 20. Nh2 {[%emt 0:01:46]} Qh6 {[%emt 0:02:16][%cal Od7h3] ...Bxh3! is the strong threat.} 21. f4 {[%emt 0:03:15] [#]} exf3 $1 {[%emt 0:02:19]} 22. Nxf3 {[%emt 0:00:34]} Qg6 {[%emt 0:00:22]} 23. Kf1 {[%emt 0:03:20]} Bg3 {[%emt 0:04:52]} 24. Rd1 {[%emt 0:04:13]} Bf5 {[%emt 0:07:29]} 25. Qe2 {[%emt 0:02:41]} Bc2 {[%emt 0:01:19][%cal Bf5c2,Bc2a4,Ba4b5,Bb5c4][%mdl 32]} 26. Rd2 {[%emt 0:00:32]} Ba4 {[%emt 0:00:47] Strongly threatening ...Bb5.} 27. Ne1 $2 {[%emt 0:04:48]} (27. Kg1) 27... Bf4 {[%emt 0:08:25] This bishop pair is nice.} (27... Rcd8 $142 {aiming for ...Bb5.} 28. Nd3 Rxd4) 28. Rc2 $2 {[%emt 0:10:30]} (28. Rd3) 28... Bb5 {[%emt 0:00:56] Black is clearly winning.} 29. Rc4 {[%emt 0:00:15]} Qe6 {[%emt 0:02:09]} 30. Kg1 {[%emt 0:05:02]} Bxc4 {[%emt 0:00:11]} 31. Qf3 {[%emt 0:00:49]} Bxe3+ {[%emt 0:00:26]} 32. Bxe3 {[%emt 0:00:47]} Qxe3+ {[%emt 0:00:08] Weighted Error Value: White=0.49/Black=0.12 (very precise)} 0-1

[Event "44th Chess Olympiad Women 2022"]
[Site "Chennai"]
[Date "2022.07.29"]
[Round "1.34"]
[White "Cramling, Pia"]
[Black "Lyons, Kieran"]
[Result "1-0"]
[ECO "A90"]
[WhiteElo "2459"]
[BlackElo "1767"]
[Annotator "TA"]
[PlyCount "51"]
[EventDate "2022.07.29"]
[EventType "team-tourn"]
[EventCountry "IND"]
[SourceTitle "playchess.com"]
[Source "ChessBase"]
[SourceQuality "1"]
[WhiteTeam "Sweden"]
[BlackTeam "Fiji"]
[WhiteTeamCountry "SWE"]
[BlackTeamCountry "FIJ"]
[TimeControl "40/5400+30:1800+30"]

{[%evp 9,51,27,31,7,24,29,35,40,63,0,129,110,189,174,186,172,152,160,167,130,187,86,250,170,156,178,174,117,120,125,109,111,262,266,371,381,412,377,353,353,767,771,798,782]} 1. d4 {[%emt 0:00:11]} f5 {[%emt 0:00:04]} 2. g3 {[%emt 0:00:23]} e6 {[%emt 0:00:21]} 3. Bg2 {[%emt 0:00:33]} Nf6 {[%emt 0:00:19]} 4. c4 {[%emt 0:00:33]} c6 {[%emt 0:00:32]} 5. Qc2 {[%emt 0:01:02]} d6 {[%emt 0:01:29] [#]} 6. Bf4 $146 {[%emt 0:15:03] A90: Dutch Defence: Miscellaneous and Modern Stonewall (with ...Bd6).} ({Predecessor:} 6. Nf3 e5 7. Nc3 e4 8. Ng1 Be6 9. Bg5 h6 10. Bxf6 Qxf6 11. Qb3 Nd7 12. Qxb7 Rb8 13. Qxa7 Rxb2 {½-½ (45) Navara,D (2734)-Agdestein,S (2606) Berlin 2015}) 6... Be7 {[%emt 0:05:08]} 7. Nc3 {[%emt 0:04:52]} O-O {[%emt 0:04:46]} 8. Nf3 {[%emt 0:09:30] White is slightly better.} h6 {[%emt 0:07:57]} 9. e4 {[%emt 0:10:36] White is more active.} (9. Rd1 $14) 9... g5 {[%emt 0:17:45]} (9... Nxe4 $11 {keeps the balance.} 10. Nxe4 fxe4 11. Qxe4 e5 12. dxe5 Bf5) 10. Bd2 {[%emt 0:02:40]} Kg7 {[%emt 0:15:58]} (10... Na6 $16) 11. O-O-O $18 {[%emt 0:04:24]} Nbd7 {[%emt 0:22:06]} 12. exf5 {[%emt 0:17:46]} exf5 {[%emt 0:02:18]} 13. Rhe1 {[%emt 0:03:44]} ({Worse is} 13. Qxf5 Ng4 $1 14. Qc2 (14. Qxg4 $2 Nf6 $19) 14... Nxf2 $17) 13... Nb6 {[%emt 0:05:27]} 14. b3 {[%emt 0:03:06][%cal Od4d5]} a5 {[%emt 0:03:07]} (14... d5 $16) 15. a4 {[%emt 0:00:14]} (15. d5 $18 c5 16. a4) 15... Qc7 {[%emt 0:04:42]} (15... d5 $16 {was called for.}) 16. Kb2 {[%emt 0:02:53]} Rf7 {[%emt 0:00:40]} 17. h4 {[%emt 0:01:59]} g4 {[%emt 0:01:14] [#]} 18. Ng1 {[%emt 0:00:12]} (18. Nh2 $1 $18) 18... d5 $16 {[%emt 0:02:14]} 19. cxd5 {[%emt 0:08:10]} cxd5 {[%emt 0:00:26]} 20. Qc1 {[%emt 0:02:53]} Ng8 $2 {[%emt 0:00:10]} (20... Kh7 $16) 21. Nxd5 $18 {[%emt 0:04:14]} ({Much less strong is} 21. Bxd5 Nxd5 22. Nxd5 Qxc1+ 23. Rxc1 Bd8 $18) 21... Qd6 {[%emt 0:02:15]} 22. Nxe7 {[%emt 0:00:52] Chess con chili.} Rxe7 {[%emt 0:00:15]} 23. Qc5 {[%emt 0:00:45]} Qxc5 {[%emt 0:00:46]} 24. dxc5 {[%emt 0:00:06]} Rxe1 {[%emt 0:00:06]} (24... Nd7 25. Bc3+ Kf8) 25. Bxe1 {[%emt 0:00:51]} Nd7 {[%emt 0:00:42] [#]} 26. Bxb7 $1 {[%emt 0:01:08][%mdl 512] Weighted Error Value: White=0.21 (precise) /Black=0.52} 1-0

[Event "44th Chess Olympiad Women 2022"]
[Site "Chennai"]
[Date "2022.07.29"]
[Round "1.34"]
[White "Cramling Bellon, Anna"]
[Black "Terubea, Cydel"]
[Result "1-0"]
[ECO "D35"]
[WhiteElo "2065"]
[BlackElo "1450"]
[Annotator "TA"]
[PlyCount "83"]
[EventDate "2022.07.29"]
[EventType "team-tourn"]
[EventCountry "IND"]
[SourceTitle "playchess.com"]
[Source "ChessBase"]
[SourceQuality "1"]
[WhiteTeam "Sweden"]
[BlackTeam "Fiji"]
[WhiteTeamCountry "SWE"]
[BlackTeamCountry "FIJ"]
[TimeControl "40/5400+30:1800+30"]

{[%evp 14,83,20,22,20,8,22,11,6,9,8,14,30,28,17,25,47,55,50,40,47,32,52,41,70,60,62,76,56,16,12,16,58,18,17,6,269,252,350,351,355,360,352,290,346,340,338,350,404,387,801,791,928,901,817,787,774,754,910,879,1034,820,1072,1134,903,867,29991,29992,29992,29993,29993,29994]} 1. d4 {[%emt 0:00:06]} d5 {[%emt 0:00:21]} 2. c4 {[%emt 0:00:15]} e6 {[%emt 0:00:35]} 3. Nc3 {[%emt 0:00:30]} Nf6 {[%emt 0:00:32]} 4. cxd5 {[%emt 0:00:40]} exd5 {[%emt 0:00:49]} 5. Bg5 {[%emt 0:01:00]} Be7 {[%emt 0:00:53]} 6. e3 {[%emt 0:00:27]} O-O {[%emt 0:00:56]} 7. Bd3 {[%emt 0:00:56]} h6 {[%emt 0:00:38]} 8. Bf4 {[%emt 0:05:34]} a6 {[%emt 0:01:45] 8...c5 is setting a new trend. D35: Queen's Gambit Declined: Exchange Variation.} 9. h3 {[%emt 0:00:29]} c5 {[%emt 0:01:30]} 10. dxc5 {[%emt 0:02:41]} Bxc5 {[%emt 0:00:27] The position is equal.} 11. Nf3 {[%emt 0:01:05]} Nc6 {[%emt 0:00:47]} 12. O-O {[%emt 0:01:57]} Re8 {[%emt 0:02:05]} 13. Rc1 {[%emt 0:01:48]} Ba7 {[%emt 0:03:33]} 14. Ne2 {[%emt 0:09:31] [#]} Nb4 $146 {[%emt 0:04:03]} ({Predecessor:} 14... Qb6 15. b3 Ne4 16. Nc3 Qa5 17. Bxe4 dxe4 18. Nd2 Qf5 19. Kh2 Bb8 20. Bxb8 Rxb8 {½-½ (41) Hildebrand,G (2334)-Alascio Ruiz,J (2270) ICCF email 2017}) 15. Bb1 {[%emt 0:01:33]} Nc6 {[%emt 0:05:41]} 16. Ned4 {[%emt 0:01:55]} Bd7 {[%emt 0:07:36]} 17. a3 {[%emt 0:09:08]} Nh5 {[%emt 0:03:08]} 18. Bh2 {[%emt 0:06:13]} Bb8 {[%emt 0:03:43]} 19. Bxb8 {[%emt 0:05:00]} Rxb8 {[%emt 0:01:24]} 20. Nxc6 {[%emt 0:02:22]} bxc6 {[%emt 0:01:25]} 21. b4 {[%emt 0:03:33]} a5 $1 {[%emt 0:03:57]} 22. Nd4 $36 {[%emt 0:11:47][%mdl 2048] White is more active.} Nf6 {[%emt 0:02:41]} 23. bxa5 {[%emt 0:09:45]} Qxa5 {[%emt 0:05:08]} 24. Bf5 {[%emt 0:01:04]} c5 $2 {[%emt 0:02:20][%mdl 8192] [#] This move loses the game for Black.} (24... Bxf5 $11 25. Nxf5 c5) 25. Bxd7 $18 {[%emt 0:00:18]} cxd4 {[%emt 0:04:39]} 26. Bxe8 {[%emt 0:00:25]} Rxe8 {[%emt 0:00:43]} 27. Qxd4 {[%emt 0:00:41]} Qxa3 {[%emt 0:03:18]} 28. Rc3 {[%emt 0:02:16]} Qa2 {[%emt 0:01:52]} 29. Rfc1 {[%emt 0:05:37]} Ne4 {[%emt 0:03:46]} 30. R3c2 {[%emt 0:00:23]} Qa5 {[%emt 0:06:13]} 31. f3 {[%emt 0:05:02] [#] And now Rc8 would win.} Ng3 $2 {[%emt 0:01:41]} (31... Ng5 32. Rc5 Qa8 33. Rxd5 Qa3) 32. Qg4 {[%emt 0:01:03]} Rxe3 {[%emt 0:03:17]} 33. Qxg3 {[%emt 0:00:21] aiming for Qb8+.} Qb6 {[%emt 0:01:13] Against Qb8+} 34. Qf2 {[%emt 0:00:45]} d4 {[%emt 0:01:06]} 35. Rd2 {[%emt 0:01:17]} Qa6 {[%emt 0:05:06]} 36. Rxd4 {[%emt 0:01:49]} Re2 {[%emt 0:00:43]} 37. Qf1 {[%emt 0:04:30]} Qa2 {[%emt 0:01:32]} 38. Re4 {[%emt 0:01:00]} Qa7+ {[%emt 0:00:41]} 39. Kh1 {[%emt 0:00:14]} Rf2 {[%emt 0:00:18]} 40. Re8+ {[%emt 0:00:38] White mates.} Kh7 {[%emt 0:00:35]} 41. Qd3+ {[%emt 0:30:07]} g6 {[%emt 0:32:03]} 42. Qc3 {[%emt 0:01:33] Weighted Error Value: White=0.11 (very precise) /Black=0.72} 1-0

[Event "44th Chess Olympiad Women 2022"]
[Site "Chennai"]
[Date "2022.07.29"]
[Round "1.34"]
[White "Sewak, Aarti"]
[Black "Agrest, Inna"]
[Result "0-1"]
[ECO "A49"]
[WhiteElo "1412"]
[BlackElo "2217"]
[Annotator "TA"]
[PlyCount "76"]
[EventDate "2022.07.29"]
[EventType "team-tourn"]
[EventCountry "IND"]
[SourceTitle "playchess.com"]
[Source "ChessBase"]
[SourceQuality "1"]
[WhiteTeam "Fiji"]
[BlackTeam "Sweden"]
[WhiteTeamCountry "FIJ"]
[BlackTeamCountry "SWE"]
[TimeControl "40/5400+30:1800+30"]

{[%evp 11,76,10,47,12,25,-2,13,-5,-4,-10,-16,-37,-41,-48,-39,-93,-89,-103,-57,-75,-52,-103,-100,-154,-134,-184,-183,-181,-178,-193,-148,-159,-80,-73,-71,-159,-171,-181,-92,-110,-114,-221,-236,-302,-296,-420,-389,-339,-363,-346,-352,-343,-332,-557,-550,-554,-469,-825,-825,-1208,-1195,-1448,-1191,-1525,-1443,-2623,-2441]} 1. d4 {[%emt 0:00:02]} Nf6 {[%emt 0:00:07]} 2. g3 {[%emt 0:00:36]} g6 {[%emt 0:00:44]} 3. Nf3 {[%emt 0:00:29]} Bg7 {[%emt 0:00:12]} 4. Bg2 {[%emt 0:00:42]} O-O {[%emt 0:00:26]} 5. O-O {[%emt 0:00:31]} d6 {[%emt 0:00:15]} 6. Nc3 {[%emt 0:00:39]} Na6 {[%emt 0:02:41]} 7. Bg5 {[%emt 0:01:35] [#] A49: 1 d4 Nf6 2 Nf3 g6 3 g3: Anti-King's Indian systems.} c5 $146 {[%emt 0:01:50]} ({Predecessor:} 7... h6 8. Bxf6 Bxf6 9. Qd2 Bg7 10. Rad1 c6 11. a3 Nc7 12. e4 Be6 13. Ne2 Kh7 14. h3 Qc8 {0-1 (39) Peschardt,S (2069)-Hansen,R (1947) Ballerup 2010}) 8. e3 {[%emt 0:01:22]} Rb8 {[%emt 0:02:16]} 9. Bxf6 {[%emt 0:02:03] The position is equal.} Bxf6 {[%emt 0:00:50]} 10. a3 {[%emt 0:01:53]} b6 {[%emt 0:02:02]} 11. Nd5 {[%emt 0:01:54]} Bg7 {[%emt 0:01:15]} 12. Re1 {[%emt 0:01:35]} Bb7 {[%emt 0:01:47]} 13. Nf4 {[%emt 0:00:56]} (13. Nc3 $15) 13... e5 $17 {[%emt 0:02:18]} 14. Ne2 {[%emt 0:01:23]} Nc7 {[%emt 0:05:26]} (14... cxd4 $17 15. exd4 e4) 15. c3 $15 {[%emt 0:01:23]} Re8 {[%emt 0:05:34]} 16. Nh4 {[%emt 0:03:28]} ({White should try} 16. b4 $15) 16... e4 $17 {[%emt 0:08:33]} 17. Bh1 {[%emt 0:09:18]} (17. Bh3 $142) 17... Ne6 {[%emt 0:02:57] Black is more active.} 18. Nf4 {[%emt 0:03:55]} (18. Rb1 $17 {was called for.}) 18... Nxf4 $19 {[%emt 0:04:39]} 19. exf4 {[%emt 0:01:07]} cxd4 {[%emt 0:00:24]} 20. cxd4 {[%emt 0:03:38]} Qf6 {[%emt 0:05:09]} 21. Re2 {[%emt 0:00:28]} d5 {[%emt 0:01:31]} (21... Rbc8 $142 22. d5 Rc4) 22. Rd2 $17 {[%emt 0:02:08]} Rbc8 {[%emt 0:01:53] Hoping for ...Rc4.} 23. Qb3 {[%emt 0:02:47]} (23. Qe2 $142) 23... Rc4 {[%emt 0:02:16]} 24. Rad1 {[%emt 0:00:00] [#]} Bc6 {[%emt 0:07:40]} ({Better is} 24... Bc8 $1 $19 {[%cal Rc8g4] aiming for ...Bg4.} 25. Ng2 Bg4) 25. Qe3 {[%emt 0:00:00]} Bd7 $36 {[%emt 0:01:14][%mdl 2048] Black has strong initiative. A strong pair of Bishops.} 26. b3 {[%emt 0:00:15]} (26. Bg2 $17 {was necessary.}) 26... Rc7 $19 {[%emt 0:01:33]} 27. Bg2 {[%emt 0:00:31]} Rec8 {[%emt 0:00:42]} 28. Rb1 {[%emt 0:00:47]} (28. Bf1 $142) 28... Rc1+ {[%emt 0:04:15]} 29. Rd1 {[%emt 0:00:11]} Rxb1 {[%emt 0:01:06]} 30. Rxb1 {[%emt 0:00:40]} Rc2 {[%emt 0:01:20]} ({Not} 30... Qxd4 $2 31. Qxd4 Bxd4 32. Rd1) 31. Rd1 {[%emt 0:00:54]} Qc6 {[%emt 0:01:03]} 32. f3 $2 {[%emt 0:10:07]} (32. Bf1) 32... Rc3 {[%emt 0:02:11] Black is clearly winning.} 33. Qe2 {[%emt 0:01:46]} f5 {[%emt 0:03:47]} 34. Qb2 {[%emt 0:02:53]} (34. Bf1 $142) 34... Rc2 {[%emt 0:01:08]} 35. Qa1 {[%emt 0:01:07]} e3 {[%emt 0:01:01][%cal Be4e3,Be3e2][%mdl 32] [#] White must now prevent ...e2.} 36. Re1 {[%emt 0:01:59]} e2 {[%emt 0:02:22] ...Rd2 is the strong threat.} 37. Bh3 {[%emt 0:01:17]} Rd2 {[%emt 0:01:42]} 38. Kg2 {[%emt 0:02:40]} Qc2 {[%emt 0:00:52] Weighted Error Value: White=0.88/Black=0.14 (very precise)} 0-1

[Event "44th Chess Olympiad Women 2022"]
[Site "Chennai"]
[Date "2022.07.29"]
[Round "1.34"]
[White "Prasad, Tanvi"]
[Black "Andric, Jelena"]
[Result "0-1"]
[ECO "E12"]
[WhiteElo "1165"]
[BlackElo "1993"]
[Annotator "TA"]
[PlyCount "144"]
[EventDate "2022.07.29"]
[EventType "team-tourn"]
[EventCountry "IND"]
[SourceTitle "playchess.com"]
[Source "ChessBase"]
[SourceQuality "1"]
[WhiteTeam "Fiji"]
[BlackTeam "Sweden"]
[WhiteTeamCountry "FIJ"]
[BlackTeamCountry "SWE"]
[TimeControl "40/5400+30:1800+30"]

{[%evp 17,144,27,26,13,37,4,6,0,15,-41,-15,-52,-53,-108,-114,-157,-127,-139,-125,-102,-55,-51,-15,-55,-57,-98,-8,-38,-2,-22,-11,-44,-34,-81,-42,-197,-203,-198,-203,-333,-311,-322,-322,-320,-296,-281,-195,-285,-281,-307,-301,-435,-409,-380,-227,-224,-210,-227,-227,-231,-231,-222,-215,-220,-220,-267,-139,-139,-139,-220,-220,-220,-220,-216,-200,-210,-200,-200,-171,-200,0,-195,-150,-197,-174,-184,-185,-491,-456,-716,-647,-381,-656,-683,-680,-908,-1053,-1159,-1159,-964,-700,-800,-827,-512,-269,-303,-241,-241,-241,-29984,-29985,-29985,-29986,-29988,-29989,-29989,-29989,-29989,-29988,-29990,-29990,-29990,-29991,-29992,-29993,-29994,-29992,-29992,-29992]} 1. d4 {[%emt 0:00:03]} e6 {[%emt 0:00:13]} 2. c4 {[%emt 0:00:09]} b6 {[%emt 0:00:25]} 3. Nc3 {[%emt 0:00:11]} Bb7 {[%emt 0:00:44]} 4. Nf3 {[%emt 0:00:23]} Nf6 {[%emt 0:02:45]} 5. Bg5 {[%emt 0:00:38]} Be7 {[%emt 0:02:00]} 6. e3 {[%emt 0:01:18]} d6 {[%emt 0:01:21]} 7. Bd3 {[%emt 0:02:07]} Nbd7 {[%emt 0:02:14]} 8. O-O {[%emt 0:02:03]} h6 {[%emt 0:05:31]} 9. Bh4 {[%emt 0:00:57]} O-O {[%emt 0:15:27]} 10. h3 {[%emt 0:01:44] [#] E12: Queen's Indian: Unusual White 4th moves, 4 a3, 4 Nc3 Bb7 5 a3 and 4 Nc3 Bb7 .} Re8 $146 {[%emt 0:06:38]} ({Predecessor:} 10... c5 11. Qe2 Rc8 12. Rfd1 cxd4 13. exd4 Re8 14. Bg3 a6 15. b4 Bf8 16. Rab1 {½-½ (16) Norowitz,Y (2420)-Margvelashvili,G (2582) Nassau 2012}) 11. Qc2 {[%emt 0:03:24]} c5 {[%emt 0:07:49]} 12. Be2 {[%emt 0:08:37] The position is equal.} cxd4 {[%emt 0:07:20]} (12... Rc8 {seems wilder.} 13. Rfd1 d5 14. Rac1 dxc4 15. Ne5 Nd5) 13. exd4 {[%emt 0:00:59]} (13. Nxd4 $11 Rc8 14. Rac1) 13... Rc8 {[%emt 0:01:12]} 14. a4 {[%emt 0:03:35]} Bxf3 {[%emt 0:02:50]} 15. gxf3 {[%emt 0:01:50]} (15. Bxf3 $15 Rxc4 16. Rfd1) 15... d5 $17 {[%emt 0:03:43]} 16. b3 {[%emt 0:01:22]} Nh5 {[%emt 0:08:02]} 17. Bg3 {[%emt 0:01:01]} Bh4 {[%emt 0:02:56]} 18. Kh2 {[%emt 0:00:44]} Nxg3 {[%emt 0:08:27]} (18... Bg5 $17 19. f4 Nxf4) 19. fxg3 $15 {[%emt 0:00:15]} Qc7 {[%emt 0:01:57]} 20. Rg1 {[%emt 0:01:50]} Bf6 $36 {[%emt 0:02:23][%cal Bh4f6,Bf6e7,Be7c5][%mdl 2080] Black has good play.} 21. Rad1 {[%emt 0:01:59]} dxc4 {[%emt 0:01:38]} (21... Nb8 $17 {...Nc6 is the strong threat.} 22. Qd2 Red8) 22. bxc4 {[%emt 0:03:23]} Qb8 {[%emt 0:02:28]} 23. Ne4 {[%emt 0:03:02]} Be7 {[%emt 0:01:15]} 24. Qd3 {[%emt 0:03:40]} Red8 {[%emt 0:00:53]} 25. Rc1 {[%emt 0:04:55]} (25. Qb3 $15 {feels stronger.}) 25... Nc5 {[%emt 0:00:55]} 26. Nxc5 {[%emt 0:01:25]} ({White should play} 26. Qe3 $15 Nxe4 27. Qxe4) 26... Bxc5 $19 {[%emt 0:00:19]} ({Inferior is} 26... bxc5 27. d5 $15) 27. Rgd1 {[%emt 0:02:49]} Rxd4 {[%emt 0:00:37]} 28. Qb3 {[%emt 0:00:46]} (28. Qc2 $142) 28... Rcd8 {[%emt 0:01:42]} 29. Rxd4 {[%emt 0:02:31]} Rxd4 {[%emt 0:00:11]} (29... Bxd4 $2 {loses.} 30. Rd1 $17) 30. Rd1 {[%emt 0:01:05]} Qe5 {[%emt 0:02:39]} 31. Qc2 {[%emt 0:03:08]} Qe3 {[%emt 0:01:17] ( -> ...Qf2+)} 32. Bd3 {[%emt 0:05:16]} (32. h4 {might work better.}) 32... Qxf3 {[%emt 0:01:24]} 33. Bh7+ {[%emt 0:01:39]} Kh8 {[%emt 0:00:36]} 34. Rxd4 {[%emt 0:01:25]} (34. Bd3 $142) 34... Bxd4 {[%emt 0:00:10][%mdl 4096] Endgame KQB-KQB} 35. Be4 {[%emt 0:00:44]} Qf2+ {[%emt 0:03:24]} (35... Qe3 $142 {[%csl Gd4][%cal Re3g1]} 36. Qg2 f5) 36. Qxf2 {[%emt 0:00:13]} Bxf2 {[%emt 0:00:04] KB-KB} 37. Kg2 {[%emt 0:01:18]} Bc5 {[%emt 0:00:11]} 38. Kf3 {[%emt 0:00:31]} Kg8 {[%emt 0:02:06]} 39. Bc6 {[%emt 0:00:45]} Kf8 {[%emt 0:00:29]} 40. g4 {[%emt 0:00:51]} Ke7 {[%emt 0:00:12]} 41. Ke4 {[%emt 0:30:29]} Kd6 {[%emt 0:32:48]} (41... g6 $19 {Threatens to win with ...f5+.} 42. Ke5 f6+ 43. Kf4 f5) 42. Be8 $17 {[%emt 0:02:20]} f6 {[%emt 0:00:54]} 43. Bg6 {[%emt 0:02:35]} (43. h4 $17) 43... Bf2 $19 {[%emt 0:00:00]} 44. Be8 {[%emt 0:00:00]} Kc5 {[%emt 0:00:00]} 45. Kd3 {[%emt 0:00:00]} Kb4 {[%emt 0:00:00]} 46. Bd7 {[%emt 0:00:00]} e5 {[%emt 0:00:00]} 47. Bb5 {[%emt 0:00:00]} Ka5 {[%emt 0:00:00]} 48. Bc6 {[%emt 0:00:00]} Kb4 {[%emt 0:00:00]} 49. Bb5 $1 {[%emt 0:00:00]} Kb3 {[%emt 0:00:00]} 50. Bc6 {[%emt 0:00:00]} (50. Ke4 $17) 50... Bc5 {[%emt 0:00:00]} 51. Bb5 {[%emt 0:00:00]} g6 {[%emt 0:01:12]} 52. Be8 $2 {[%emt 0:00:00]} (52. Ke4 {is tougher.}) 52... f5 {[%emt 0:01:54]} 53. Bxg6 {[%emt 0:00:00]} (53. Kd2 $142 f4 54. Kd3) 53... e4+ {[%emt 0:02:15]} 54. Ke2 {[%emt 0:00:00]} fxg4 {[%emt 0:00:15]} (54... Kxa4 55. Bxf5 Kb3 56. Bxe4 a5) 55. hxg4 {[%emt 0:00:00] [#]} e3 {[%emt 0:00:16]} 56. Be8 {[%emt 0:00:00]} Kxc4 {[%emt 0:00:17]} 57. Bb5+ {[%emt 0:00:00]} Kb4 {[%emt 0:00:31]} 58. Kd1 {[%emt 0:00:11]} a6 {[%emt 0:00:28]} 59. Bxa6 {[%emt 0:01:45]} Kxa4 {[%emt 0:00:05]} 60. Be2 {[%emt 0:00:17]} b5 {[%emt 0:00:34][%cal Bb6b5,Bb5b4,Bb4b3,Bb3b2][%mdl 32]} 61. Kc2 {[%emt 0:01:00]} b4 {[%emt 0:00:44] aiming for ...b3+.} 62. Bc4 {[%emt 0:00:49] Inhibits b3+.} Ka3 {[%emt 0:00:45]} 63. Kb1 $2 {[%emt 0:01:24] [#]} (63. Bd3 $19) 63... b3 {[%emt 0:00:15] Black mates.} 64. Bd3 {[%emt 0:00:58]} Kb4 {[%emt 0:00:16]} 65. Kc1 {[%emt 0:05:23]} Kc3 {[%emt 0:00:24]} 66. Be2 {[%emt 0:00:56]} b2+ {[%emt 0:00:12]} 67. Kb1 {[%emt 0:00:28]} Kd2 {[%emt 0:00:31]} 68. Bf1 {[%emt 0:00:58]} Bd4 {[%emt 0:00:16]} 69. Bc4 {[%emt 0:00:31]} e2 {[%emt 0:00:09]} 70. Bxe2 {[%emt 0:00:15]} Kxe2 {[%emt 0:00:05]} 71. Ka2 {[%emt 0:00:06]} Kf3 {[%emt 0:00:09]} 72. Kb1 {[%emt 0:00:10]} Kxg4 {[%emt 0:00:05] Weighted Error Value: White=0.38/Black=0.23 (precise)} 0-1